bitfinex/quotes_SOLUSD_20251006
["timestamp","ask_amount","ask_price","bid_price","bid_amount"]
[1759737680491,10.87647521,231.89,231.81,34.67382661]
[1759737680692,0.7,231.88,231.81,35.34382661]
[1759737680899,0.7,231.88,231.81,0.67]
[1759737680900,11.57647521,231.87,231.81,0.67]
[1759737681496,4.31294746,231.86,231.81,0.67]
[1759737681695,5.01294746,231.86,231.79,34.67422364]
[1759737681894,5.01294746,231.86,231.81,0.67]
[1759737682776,1.35349186,231.84,231.76,25.7846751]
[1759737682980,0.7,231.83,231.77,31.03]
[1759737683179,1.35349186,231.84,231.78,0.67]
[1759737683593,4.31350558,231.83,231.78,0.67]
[1759737683779,4.31350558,231.83,231.79,0.67]
[1759737684288,0.7,231.85,231.8,0.67]
[1759737684602,4.31294746,231.86,231.8,0.67]
[1759737684779,4.3127628,231.87,231.8,0.67]
[1759737684980,4.3127628,231.87,231.81,30.36]
[1759737685304,4.3127628,231.87,231.82,0.67]
[1759737686003,4.3127628,231.87,231.83,0.67]
[1759737686387,4.3127628,231.87,231.81,30.36]
[1759737686687,4.3127628,231.87,231.81,31.03]
[1759737686886,4.3127628,231.87,231.81,0.67]
[1759737687084,4.3127628,231.87,231.81,31.03]
[1759737688600,4.3127628,231.87,231.81,30.36]
[1759737688803,4.3127628,231.87,231.82,0.67]
[1759737688986,5.0127628,231.87,231.82,0.67]
[1759737689391,0.7,231.86,231.8,4.31400653]
[1759737689595,0.7,231.86,231.8,35.34400653]
[1759737689902,6.42315708,231.87,231.81,0.67]
[1759737690790,7.12315708,231.87,231.81,0.67]
[1759737691312,7.12315708,231.87,231.8,31.03]
[1759737691811,7.12315708,231.87,231.81,0.67]
[1759737692985,10.78160064,231.88,231.81,0.67]
[1759737692986,4.31257547,231.88,231.81,4.98384278]
[1759737693306,6.42296975,231.88,231.81,0.67]
[1759737694704,7.13296975,231.88,231.81,0.67]
[1759737696509,5.02257547,231.88,231.81,4.98379237]
[1759737696707,4.41202327,231.91,231.83,20.8]
[1759737696885,4.41202327,231.91,231.84,31.02]
[1759737697090,4.41202327,231.91,231.85,0.66]
[1759737697396,0.1,231.91,231.85,0.66]
[1759737698713,0.1,231.91,231.86,4.31294746]
[1759737698902,0.1,231.91,231.87,21.46]
[1759737699215,0.1,231.91,231.88,30.34]
[1759737699401,0.1,231.91,231.88,31.0]
[1759737699587,0.1,231.91,231.89,0.66]
[1759737700909,0.1,231.91,231.9,4.31220353]
[1759737701212,0.1,231.91,231.9,31.0]
[1759737701906,0.1,231.91,231.9,0.66]
[1759737702111,0.1,231.91,231.9,31.0]
[1759737703013,0.1,231.91,231.9,35.31220353]
[1759737704691,0.1,231.91,231.9,48.25188305]
[1759737705895,0.1,231.91,231.9,59.12835826]
[1759737706095,1e-08,231.91,231.9,59.12835826]
[1759737706302,0.71,232.07,231.94,20.8]
[1759737706504,0.71,232.07,231.98,20.8]
[1759737706712,0.71,232.07,231.99,31.0]
[1759737707322,4.30923037,232.06,231.99,21.46]
[1759737707528,4.30923037,232.06,232.0,30.34]
[1759737708007,0.68,232.05,232.01,30.34]
[1759737708226,0.68,232.04,232.01,30.34]
[1759737708641,0.68,232.03,232.0,30.34]
[1759737708926,4.98923037,232.06,232.0,30.34]
[1759737709616,0.68,232.05,232.0,30.34]
[1759737709815,0.68,232.04,232.0,30.34]
[1759737710204,0.68,232.03,232.0,30.34]
[1759737711326,0.68,232.02,231.99,30.34]
[1759737711522,0.68,232.06,231.99,31.02]
[1759737711714,2.79039428,232.06,231.99,31.02]
[1759737711914,4.98945164,232.05,231.99,30.34]
[1759737712834,4.30945164,232.05,231.99,31.02]
[1759737713332,4.30945164,232.05,232.0,0.68]
[1759737713635,4.30945164,232.05,232.01,0.68]
[1759737714830,4.30945164,232.05,232.02,0.68]
[1759737715029,4.30911516,232.07,232.03,0.68]
[1759737715734,4.3090442,232.08,232.03,0.68]
[1759737716108,4.9890442,232.08,232.03,0.68]
[1759737717631,0.68,232.07,232.01,0.68]
[1759737718225,4.98867335,232.09,232.01,0.68]
[1759737718622,31.67647521,232.12,232.01,4.99010277]
[1759737718840,4.30847005,232.11,232.02,0.68]
[1759737719424,4.40810982,232.13,232.02,0.68]
[1759737719625,0.1,232.13,232.04,20.8]
[1759737719920,0.1,232.13,232.05,31.0]
[1759737720322,0.1,232.13,232.06,0.68]
[1759737720844,4.40793132,232.13,232.07,30.32]
[1759737721043,0.1,232.13,232.08,0.68]
[1759737721235,0.1,232.13,232.09,0.68]
[1759737721430,4.40793487,232.13,232.04,4.30767548]
[1759737721736,4.40793487,232.13,232.05,31.0]
[1759737721914,4.40793487,232.13,232.06,0.68]
[1759737722341,4.40793487,232.13,232.07,30.32]
[1759737722845,4.40793487,232.13,232.07,31.0]
[1759737723143,0.68,232.12,232.07,30.32]
[1759737723321,0.68,232.12,232.07,31.0]
[1759737723639,15.17776212,232.13,232.07,31.0]
[1759737723946,0.68,232.12,232.06,30.32]
[1759737724126,15.17776212,232.13,232.07,0.68]
[1759737725124,0.1,232.13,232.07,0.68]
[1759737725444,4.40799857,232.13,232.07,0.68]
[1759737726022,5.08799857,232.13,232.07,30.32]
[1759737727026,5.08799857,232.13,232.06,0.68]
[1759737727233,5.08799857,232.13,232.06,31.0]
[1759737727435,0.1,232.13,232.07,0.68]
[1759737727622,4.40799317,232.13,232.07,0.68]
[1759737730349,0.1,232.13,232.07,4.9889192]
[1759737730536,0.1,232.13,232.08,0.68]
[1759737731534,0.1,232.13,232.08,4.98870094]
[1759737731735,0.1,232.13,232.09,0.68]
[1759737732641,0.1,232.13,232.1,4.30848772]
[1759737732837,0.1,232.13,232.11,0.68]
[1759737734333,0.1,232.13,232.12,0.68]
[1759737734940,0.1,232.13,232.11,0.68]
[1759737736754,0.1,232.13,232.07,4.30887335]
[1759737736953,0.1,232.13,232.1,0.68]
[1759737737256,4.40796939,232.13,232.08,30.3]
[1759737737454,4.40796939,232.13,232.08,30.98]
[1759737737842,5.09796939,232.13,232.08,30.98]
[1759737738030,4.40796939,232.13,232.09,0.71]
[1759737738438,0.69,232.12,232.06,0.71]
[1759737738856,4.30830209,232.11,232.06,31.01]
[1759737739155,4.30830209,232.11,232.07,0.71]
[1759737739353,4.30830209,232.11,232.08,0.71]
[1759737739553,4.40808612,232.13,232.08,0.71]
[1759737739856,0.1,232.13,232.09,0.71]
[1759737740448,0.1,232.13,232.1,0.71]
[1759737740643,0.1,232.13,232.11,0.71]
[1759737741046,0.1,232.13,232.11,35.31820504]
[1759737741349,0.1,232.13,232.12,0.71]
[1759737742454,0.1,232.13,232.12,31.01]
[1759737742841,0.1,232.13,232.12,35.31811649]
[1759737744142,0.1,232.13,232.12,5.01811649]
[1759737744451,0.1,232.13,232.12,0.71]
[1759737744648,0.1,232.13,232.12,31.01]
[1759737744848,0.1,232.13,232.09,20.8]
[1759737745038,0.1,232.13,232.09,21.51]
[1759737745234,0.1,232.13,232.09,20.8]
[1759737745439,0.1,232.13,232.1,0.71]
[1759737745640,4.40795382,232.13,232.1,0.71]
[1759737746445,0.1,232.13,232.1,0.71]
[1759737747553,0.1,232.13,232.09,20.8]
[1759737747743,0.1,232.13,232.09,51.81]
[1759737747948,0.1,232.13,232.1,0.71]
[1759737749058,0.1,232.13,232.1,5.01836259]
[1759737749249,0.1,232.13,232.11,0.71]
[1759737750158,0.1,232.13,232.1,4.30836259]
[1759737750463,0.1,232.13,232.12,0.71]
[1759737750850,0.1,232.13,232.1,4.30836259]
[1759737751161,0.1,232.13,232.12,0.71]
[1759737752157,0.1,232.13,232.12,5.01811649]
[1759737752358,0.1,232.13,232.11,34.60828302]
[1759737752544,0.1,232.13,232.12,0.71]
[1759737755168,0.1,232.13,232.1,0.71]
[1759737755353,0.1,232.13,232.11,30.99]
[1759737755866,0.1,232.13,232.12,0.71]
[1759737756269,0.1,232.13,232.11,30.28]
[1759737756442,0.1,232.13,232.09,20.8]
[1759737756770,0.69,232.12,232.05,30.28]
[1759737757656,5.7550874,232.13,232.06,0.71]
[1759737757657,4.40807566,232.13,232.06,0.71]
[1759737758970,5.06807566,232.13,232.05,30.28]
[1759737759275,5.06807566,232.13,232.05,35.2993445]
[1759737760160,15.83790291,232.13,232.05,35.2993445]
[1759737760360,5.06807566,232.13,232.06,0.71]
[1759737762773,0.1,232.13,232.06,5.01908985]
[1759737762978,0.1,232.13,232.07,0.71]
[1759737763654,0.1,232.13,232.09,20.8]
[1759737763986,0.1,232.13,232.12,20.8]
[1759737764146,0.1,232.13,232.12,51.08]
[1759737764478,0.1,232.13,232.12,30.99]
[1759737765057,0.1,232.13,232.12,0.71]
[1759737765272,0.1,232.13,232.12,30.99]
[1759737766552,0.1,232.13,232.12,20.8]
[1759737767068,0.1,232.13,232.12,21.51]
[1759737768587,0.1,232.13,232.1,0.72]
[1759737768767,0.1,232.13,232.11,31.0]
[1759737768965,0.1,232.13,232.11,34.58828745]
[1759737769285,0.1,232.13,232.12,0.72]
[1759737771185,0.1,232.13,232.12,5.02811649]
[1759737777087,0.1,232.13,232.12,25.82811649]
[1759737777283,0.1,232.24,232.15,20.8]
[1759737777486,0.1,232.24,232.16,31.0]
[1759737777878,0.1,232.24,232.17,15.79516043]
[1759737778284,0.1,232.24,232.21,20.8]
[1759737778588,0.1,232.24,232.22,30.28]
[1759737778779,0.81,232.24,232.22,30.28]
[1759737778980,0.1,232.24,232.22,30.28]
[1759737779391,0.1,232.24,232.21,20.8]
[1759737779585,0.1,232.24,232.22,30.28]
[1759737779586,0.81,232.24,232.22,30.28]
[1759737780098,0.71,232.23,232.15,2.44335796]
[1759737780392,0.71,232.22,232.17,20.8]
[1759737780594,0.71,232.22,232.19,20.8]
[1759737780968,0.71,232.22,232.19,51.08]
[1759737781168,0.81,232.24,232.19,51.8]
[1759737781370,0.1,232.24,232.19,51.8]
[1759737781981,0.1,232.24,232.19,56.10681521]
[1759737782396,0.81,232.24,232.19,56.10681521]
[1759737782590,0.1,232.24,232.19,56.10681521]
[1759737783479,0.81,232.24,232.19,56.10681521]
[1759737783992,0.71,232.23,232.15,0.72]
[1759737784198,0.71,232.23,232.16,30.28]
[1759737784497,0.71,232.22,232.16,30.28]
[1759737785069,5.01639071,232.22,232.16,30.28]
[1759737786184,4.30607587,232.23,232.16,35.30735161]
[1759737786497,0.1,232.24,232.17,0.72]
[1759737786806,4.40589101,232.24,232.17,0.72]
[1759737786976,0.71,232.23,232.18,30.28]
[1759737787298,0.71,232.23,232.18,31.0]
[1759737787797,4.40589101,232.24,232.16,30.28]
[1759737787981,0.71,232.23,232.17,0.72]
[1759737788486,5.0161088,232.23,232.17,5.02718013]
[1759737791101,5.0161088,232.23,232.17,0.72]
[1759737792400,0.1,232.24,232.17,5.02717229]
[1759737792599,0.1,232.24,232.2,20.8]
[1759737792806,0.1,232.24,232.21,30.26]
[1759737792998,0.1,232.24,232.21,30.98]
[1759737793306,0.1,232.24,232.22,0.72]
[1759737793517,0.1,232.24,232.23,0.72]
[1759737794405,0.1,232.24,232.23,30.26]
[1759737795900,0.1,232.24,232.21,0.72]
[1759737796198,0.1,232.24,232.21,30.26]
[1759737796404,4.40590532,232.24,232.21,30.26]
[1759737796705,0.1,232.24,232.21,30.26]
[1759737797001,0.1,232.24,232.22,0.72]
[1759737797204,0.1,232.24,232.21,30.26]
[1759737797394,0.1,232.24,232.21,30.98]
[1759737797591,0.1,232.24,232.21,30.26]
[1759737797792,0.1,232.24,232.22,0.72]
[1759737798504,0.1,232.24,232.23,0.72]
[1759737798707,0.1,232.24,232.23,21.52]
[1759737799311,0.1,232.24,232.23,51.78]
[1759737800791,0.1,232.24,232.23,56.08607587]
[1759737801493,0.1,232.24,232.23,51.78]
[1759737802015,0.1,232.24,232.23,30.26]
[1759737802325,0.1,232.27,232.26,20.8]
[1759737802623,0.1,232.27,232.26,30.26]
[1759737802912,0.1,232.27,232.22,30.26]
[1759737803094,4.40534575,232.27,232.22,30.26]
[1759737803290,0.68,232.26,232.22,30.26]
[1759737804213,4.98557552,232.26,232.22,30.26]
[1759737805510,4.30557552,232.26,232.22,30.26]
[1759737806083,4.98557552,232.26,232.22,30.26]
[1759737806512,4.30557552,232.26,232.22,30.26]
[1759737806900,4.98557552,232.26,232.22,30.26]
[1759737807103,4.40535251,232.27,232.23,0.72]
[1759737807810,4.40535251,232.27,232.22,30.26]
[1759737808004,4.40535251,232.27,232.24,0.72]
[1759737808190,0.1,232.27,232.22,34.56622651]
[1759737808391,0.1,232.27,232.23,0.72]
[1759737808618,4.40533442,232.27,232.23,0.72]
[1759737810517,4.40533442,232.27,232.22,30.26]
[1759737810709,5.08533442,232.27,232.22,30.98]
[1759737812209,5.08533442,232.27,232.22,30.26]
[1759737812405,2.78289438,232.26,232.18,21.52]
[1759737812604,2.78289438,232.26,232.19,30.26]
[1759737812810,0.68,232.25,232.19,30.26]
[1759737813612,0.68,232.25,232.19,30.98]
[1759737814015,4.30589045,232.24,232.19,30.98]
[1759737814200,4.30589045,232.24,232.19,30.26]
[1759737814401,4.30589045,232.24,232.19,30.92]
[1759737814712,4.98589045,232.24,232.19,30.26]
[1759737815112,4.98589045,232.24,232.19,30.92]
[1759737815297,4.30589045,232.24,232.2,0.66]
[1759737815615,4.30589045,232.24,232.19,30.26]
[1759737815820,4.98589045,232.24,232.19,30.92]
[1759737816322,4.30589045,232.24,232.2,0.66]
[1759737818929,2.78289438,232.23,232.14,20.8]
[1759737819107,2.10289438,232.21,232.15,30.26]
[1759737819418,2.10289438,232.2,232.14,0.66]
[1759737820222,15.75386192,232.19,232.07,12.86727851]
[1759737820414,2.10289438,232.18,232.11,0.66]
[1759737820612,2.10289438,232.16,232.11,0.66]
[1759737821018,2.78289438,232.16,232.1,17.58]
[1759737821523,4.30755976,232.15,232.09,30.92]
[1759737821916,2.10289438,232.14,232.09,0.66]
[1759737822118,2.10289438,232.14,232.08,30.26]
[1759737822304,2.10289438,232.14,232.08,30.92]
[1759737822625,2.10289438,232.14,232.09,0.66]
[1759737822932,2.10289438,232.14,232.1,0.66]
[1759737823613,4.3079309,232.13,232.08,30.26]
[1759737823811,4.3079309,232.13,232.09,0.66]
[1759737825025,4.3079309,232.13,232.08,30.26]
[1759737825215,2.78289438,232.12,232.04,0.66]
[1759737825412,2.10289438,232.08,232.01,0.66]
[1759737825923,2.10289438,232.06,232.01,0.66]
[1759737826128,2.78289438,232.06,232.01,0.66]
[1759737826328,4.30904468,232.07,231.98,30.92]
[1759737826329,2.10289438,232.04,231.98,30.92]
[1759737826827,2.10289438,232.02,231.98,30.26]
[1759737827012,2.10289438,232.02,231.96,0.66]
[1759737827205,2.10289438,232.0,231.96,0.66]
[1759737827410,2.10289438,232.0,231.94,0.66]
[1759737827920,4.31053062,231.99,231.94,0.66]
[1759737828227,6.413425,231.99,231.95,0.71]
[1759737828626,7.133425,231.99,231.93,30.97]
[1759737828829,6.413425,231.99,231.93,30.97]
[1759737830432,6.413425,231.99,231.94,0.71]
[1759737830631,6.413425,231.99,231.95,0.71]
[1759737832734,6.413425,231.99,231.91,20.8]
[1759737832924,0.72,231.98,231.92,0.71]
[1759737833323,2.10289438,231.98,231.92,0.71]
[1759737833937,6.41379377,231.98,231.92,0.71]
[1759737837116,6.41379377,231.98,231.9,0.2]
[1759737837117,2.10289438,231.94,231.9,0.2]
[1759737837317,2.10289438,231.92,231.9,0.2]
[1759737837526,0.72,231.91,231.9,0.2]
[1759737837718,2.10289438,231.92,231.9,0.2]
[1759737838820,6.41489379,231.92,231.9,0.2]
[1759737839027,2.10289438,231.92,231.9,0.91]
[1759737839423,0.72,232.04,231.91,30.99]
[1759737839623,2.10289438,232.01,231.92,0.71]
[1759737840434,4.31034482,232.0,231.92,0.71]
[1759737840838,2.10289438,231.97,231.92,0.71]
[1759737841414,2.10289438,231.95,231.9,0.2]
[1759737841614,2.10289438,231.93,231.9,0.2]
[1759737841822,20.8,231.97,231.91,0.71]
[1759737842041,22.90289438,231.97,231.91,0.71]
[1759737842421,4.31145986,231.94,231.9,0.2]
[1759737843349,4.31145986,231.94,231.9,0.91]
[1759737843545,2.10289438,231.93,231.9,0.2]
[1759737844047,6.41423214,231.95,231.91,0.71]
[1759737844233,2.10289438,231.96,231.91,0.71]
[1759737844431,6.4141493,231.96,231.91,0.71]
[1759737844648,7.1341493,231.96,231.91,0.71]
[1759737844939,6.4141493,231.96,231.91,0.71]
[1759737845632,20.8,231.99,231.92,0.71]
[1759737846554,4.31071644,231.98,231.92,0.71]
[1759737846730,20.8,231.99,231.92,5.02176553]
[1759737846924,2.10289438,232.0,231.92,4.31176553]
[1759737847130,2.10289438,232.02,231.93,0.71]
[1759737847747,2.10289438,232.0,231.93,0.71]
[1759737848260,2.10289438,231.98,231.91,31.03]
[1759737848637,2.10289438,231.96,231.91,31.03]
[1759737848867,6.41399527,231.96,231.9,0.2]
[1759737849166,2.10289438,231.98,231.91,0.71]
[1759737849366,6.413425,231.99,231.91,0.71]
[1759737849881,4.31025893,232.01,231.91,0.71]
[1759737850248,6.41286405,232.03,231.91,0.71]
[1759737850449,2.10289438,232.03,231.93,20.8]
[1759737850758,6.41276093,232.03,231.95,4.31127398]
[1759737850930,6.41276093,232.03,231.96,0.71]
[1759737851763,6.41276093,232.03,231.96,5.02106849]
[1759737851946,7.13276093,232.03,231.96,5.02106849]
[1759737852563,7.13276093,232.03,231.96,0.71]
[1759737852742,0.72,232.02,231.95,4.31127258]
[1759737853559,2.82289438,232.01,231.93,25.1115148]
[1759737853768,2.82289438,232.01,231.93,20.8]
[1759737853952,2.10289438,231.99,231.93,25.1116321]
[1759737854667,2.10289438,231.99,231.94,0.71]
[1759737854866,2.10289438,231.99,231.95,0.71]
[1759737855164,4.31034482,232.0,231.95,0.71]
[1759737855662,5.03034482,232.0,231.95,0.71]
[1759737855864,4.31034482,232.0,231.95,0.71]
[1759737856053,4.31034482,232.0,231.95,5.02124961]
[1759737856448,4.31034482,232.0,231.94,4.31145986]
[1759737856652,4.31034482,232.0,231.94,5.02145986]
[1759737857164,2.10289438,232.01,231.95,0.71]
[1759737857572,4.31008815,232.02,231.95,0.71]
[1759737858859,4.31008815,232.02,231.96,4.31108811]
[1759737859681,4.31008815,232.02,231.96,5.02108811]
[1759737860171,4.31008815,232.02,231.97,0.71]
[1759737860426,79.1,232.05,231.98,0.71]
[1759737860921,2.10289438,232.03,231.97,3.63597792]
[1759737861478,2.81289438,232.03,231.97,3.63597792]
[1759737861675,2.81289438,232.03,231.98,2.94416934]
[1759737861865,4.30997327,232.02,231.99,2.94416934]
[1759737862065,4.30997327,232.02,232.0,2.94416934]
[1759737862268,4.30997327,232.02,232.01,2.94416934]
[1759737863166,4.30997327,232.02,231.96,5.02095124]
[1759737863368,4.30997327,232.02,231.96,8.65692916]
[1759737864587,4.30997327,232.02,231.97,5.02083486]
[1759737865085,4.30997327,232.02,231.98,0.71]
[1759737865580,79.1,232.05,231.97,4.31083486]
[1759737865581,79.1,232.05,231.99,0.71]
[1759737865791,2.10289438,232.06,231.99,0.71]
[1759737865792,4.30938539,232.06,231.99,0.71]
[1759737866893,5.01906251,232.07,231.99,4.34597792]
[1759737867183,4.30886884,232.08,232.0,0.71]
[1759737867778,2.81289438,232.1,232.01,4.31015904]
[1759737867779,4.30867335,232.09,232.01,4.31015904]
[1759737867958,4.30867335,232.09,232.02,0.71]
[1759737868565,109.4,232.13,232.02,0.71]
[1759737868566,79.81,232.13,232.02,0.71]
[1759737868888,81.91289438,232.13,232.02,0.71]
[1759737870087,4.30811649,232.12,232.03,4.30978752]
[1759737870280,5.01811649,232.12,232.04,0.71]
[1759737871300,1.34780331,232.1,232.01,25.8200072]
[1759737871607,1.34780331,232.08,232.0,0.71]
[1759737871782,0.71,232.09,231.96,5.02107809]
[1759737871783,1.34780331,232.02,231.96,5.02107809]
[1759737872173,5.65786074,232.02,231.96,5.02107809]
[1759737872974,1.34780331,232.06,231.97,0.71]
[1759737873178,2.05780331,232.07,231.97,0.71]
[1759737873692,0.71,232.07,231.97,0.71]
[1759737873884,2.05780331,232.07,231.97,0.71]
[1759737874695,1.34780331,232.05,231.97,21.51]
[1759737874900,2.06780331,232.05,231.97,25.82087463]
[1759737875402,2.06780331,232.05,231.97,21.51]
[1759737875788,2.06780331,232.05,231.97,51.87]
[1759737876310,1.34780331,232.04,231.97,51.87]
[1759737876600,4.30978752,232.03,231.97,0.71]
[1759737877176,1.34780331,232.04,231.97,5.02083368]
[1759737877398,1.34780331,232.04,231.98,0.68]
[1759737877776,5.02958618,232.05,231.98,0.68]
[1759737878083,41.13201786,232.09,232.0,20.8]
[1759737878084,1.34780331,232.09,232.0,20.8]
[1759737878281,1.34780331,232.09,232.01,31.06]
[1759737878800,5.65647666,232.09,232.02,4.98997327]
[1759737885291,4.30867335,232.09,232.02,4.98997327]
[1759737885604,0.72,232.14,232.03,0.68]
[1759737885903,21.53486692,232.19,232.04,24.43597792]
[1759737885904,2.06780331,232.17,232.04,24.43597792]
[1759737886122,1.34780331,232.12,232.05,0.68]
[1759737886328,1.34780331,232.12,232.01,10.87647521]
[1759737886329,1.34780331,232.08,232.01,4.31597792]
[1759737886607,20.8,232.13,232.01,30.38]
[1759737886608,1.34780331,232.06,232.01,30.38]
[1759737886805,1.34780331,232.04,231.99,0.68]
[1759737886978,2.06780331,232.04,231.99,31.08]
[1759737887183,1.34780331,232.02,231.96,3.63597792]
[1759737887405,4.31015904,232.01,231.96,30.4]
[1759737887605,4.31015904,232.01,231.96,31.08]
[1759737888313,5.00015904,232.01,231.96,31.08]
[1759737888494,4.31015904,232.01,231.96,30.4]
[1759737888813,4.31015904,232.01,231.97,0.66]
[1759737891311,1.34780331,232.02,231.96,34.71104406]
[1759737891312,4.30997327,232.02,231.96,34.71104406]
[1759737891516,4.30997327,232.02,231.98,0.66]
[1759737892230,4.30997327,232.02,231.96,34.71104406]
[1759737892516,4.30997327,232.02,231.96,35.37104406]
[1759737892719,4.30997327,232.02,231.96,31.06]
[1759737893418,4.30997327,232.02,231.96,0.66]
[1759737895294,5.65777658,232.02,231.96,4.97108586]
[1759737895627,0.69,232.01,231.95,30.38]
[1759737895804,5.65777658,232.02,231.96,0.66]
[1759737896117,20.8,232.07,231.96,0.66]
[1759737896301,1.34780331,232.07,231.96,4.29597792]
[1759737896504,1.34780331,232.07,231.98,4.31071644]
[1759737896706,5.65687175,232.07,231.99,0.66]
[1759737897021,1.34780331,232.07,231.99,0.66]
[1759737897431,1.34780331,232.07,232.0,20.8]
[1759737897432,4.30911415,232.07,232.0,20.8]
[1759737897604,4.30911415,232.07,232.01,0.66]
[1759737897804,4.3088509,232.09,232.01,0.66]
[1759737898194,4.9988509,232.09,232.01,0.66]
[1759737898632,4.9988509,232.09,232.02,4.30997327]
[1759737898822,4.3088509,232.09,232.03,0.66]
[1759737899134,4.30850565,232.1,232.03,0.66]
[1759737899712,4.30832042,232.11,232.03,0.66]
[1759737900332,2.03780331,232.15,232.05,20.8]
[1759737900503,2.03780331,232.17,232.07,4.30904468]
[1759737900707,0.69,232.17,232.08,0.66]
[1759737901029,1.34780331,232.24,232.11,10.87647521]
[1759737901321,0.69,232.23,232.12,31.04]
[1759737901495,0.69,232.23,232.13,0.66]
[1759737901698,1.34780331,232.2,232.13,0.66]
[1759737901936,1.34780331,232.18,232.09,3.63597792]
[1759737902228,1.34780331,232.18,232.1,51.86]
[1759737902229,0.69,232.17,232.1,51.86]
[1759737902401,1.34780331,232.18,232.11,0.66]
[1759737902599,4.30718869,232.17,232.11,0.66]
[1759737903398,2.03780331,232.19,232.11,4.96824329]
[1759737903399,4.30697324,232.19,232.11,4.96824329]
[1759737903599,4.30660282,232.21,232.12,0.66]
[1759737904408,4.30583987,232.25,232.12,0.66]
[1759737904602,2.03780331,232.24,232.13,4.3079309]
[1759737904930,1.34780331,232.22,232.14,31.08]
[1759737906145,4.30644675,232.21,232.14,30.42]
[1759737906324,4.30644675,232.21,232.1,20.8]
[1759737906531,1.34780331,232.18,232.1,0.66]
[1759737906733,0.69,232.17,232.1,0.66]
[1759737907034,1.34780331,232.16,232.1,31.08]
[1759737907634,0.69,232.19,232.11,0.66]
[1759737907827,1.34780331,232.18,232.11,0.66]
[1759737908205,4.30700318,232.18,232.11,4.96826575]
[1759737908513,4.30700318,232.18,232.12,0.66]
[1759737909231,4.30700318,232.18,232.12,4.96810482]
[1759737909619,4.30700318,232.18,232.12,0.66]
[1759737910327,4.30700318,232.18,232.12,4.96801648]
[1759737910541,4.30700318,232.18,232.13,0.66]
[1759737910738,4.30700318,232.18,232.14,0.66]
[1759737911619,4.30681769,232.19,232.14,0.66]
[1759737911817,4.99681769,232.19,232.14,0.66]
[1759737912230,4.30681769,232.19,232.14,0.66]
[1759737912733,21.49,232.21,232.15,0.66]
[1759737912734,4.30660274,232.21,232.15,0.66]
[1759737912920,10.76450331,232.25,232.15,0.66]
[1759737912921,4.30588062,232.25,232.16,30.4]
[1759737913120,4.30588062,232.25,232.17,0.66]
[1759737913438,0.69,232.24,232.17,0.66]
[1759737913731,4.30588062,232.25,232.17,0.66]
[1759737914832,4.30588062,232.25,232.17,4.96707267]
[1759737915713,4.99588062,232.25,232.17,0.66]
[1759737916031,4.99588062,232.25,232.17,4.96716633]
[1759737916351,4.30588062,232.25,232.18,0.66]
[1759737916912,4.30551967,232.26,232.18,4.96686087]
[1759737917114,4.30551967,232.26,232.19,0.66]
[1759737918539,4.30551967,232.26,232.19,4.96668689]
[1759737918920,4.30551967,232.26,232.19,0.66]
[1759737919321,5.06533831,232.27,232.19,25.76680047]